bitfinex-derivatives/quotes_ETHF0:USTF0_20241230
["timestamp","ask_amount","ask_price","bid_price","bid_amount"]
[1735527395432,0.70737,3417.0,3416.9,2.3465025]
[1735527395731,0.4141,3417.0,3416.6,2.3465025]
[1735527396029,3.5011,3416.7,3416.6,2.3465025]
[1735527397032,0.29333,3416.4,3416.3,2.3465025]
[1735527397433,0.29334,3416.3,3416.0,2.3465025]
[1735527397634,0.29334,3416.2,3416.0,2.3465025]
[1735527397831,0.4433,3416.2,3416.0,2.3465025]
[1735527398035,0.4433,3416.2,3416.1,40.8]
[1735527402340,3.6219,3416.3,3416.1,40.8]
[1735527402540,3.6219,3416.3,3416.2,0.29334]
[1735527402541,3.2078,3416.3,3416.2,0.29334]
[1735527406842,3.2078,3416.3,3416.1,40.8]
[1735527407042,3.50114,3416.3,3416.1,40.8]
[1735527407343,3.2078,3416.3,3416.1,41.09335]
[1735527407645,3.50113,3416.3,3416.1,40.8]
[1735527407945,3.93003,3416.3,3416.1,40.8]
[1735527408832,3.6367,3416.3,3416.1,41.09335]
[1735527409037,3.6367,3416.3,3416.1,40.8]
[1735527409237,3.2078,3416.3,3416.2,0.29334]
[1735527409644,3.2078,3416.3,3416.2,0.58714]
[1735527410046,3.2078,3416.7,3416.2,0.2938]
[1735527410345,3.2078,3416.7,3416.6,2.6398125]
[1735527410539,3.5011,3416.7,3416.6,2.3465025]
[1735527411237,0.29332,3416.4,3416.3,2.3465025]
[1735527411641,3.2078,3416.7,3416.3,2.3465025]
[1735527411846,3.5011,3416.7,3416.6,2.3465025]
[1735527412548,3.2078,3416.7,3416.6,2.3465025]
[1735527412737,3.2078,3416.7,3416.6,2.6398125]
[1735527418149,3.2078,3416.7,3416.2,3.2078]
[1735527418346,3.5011,3416.7,3416.4,2.6398225]
[1735527419144,3.2078,3416.7,3416.4,2.3465025]
[1735527419544,3.2078,3416.7,3416.6,0.29331]
[1735527421452,3.2078,3416.7,3416.6,41.09331]
[1735527421653,0.4511,3417.1,3416.8,0.29328]
[1735527421851,3.6589,3417.1,3416.9,2.6397825]
[1735527422148,3.6589,3417.1,3416.9,2.3465025]
[1735527422947,0.4511,3417.1,3416.9,2.3465025]
[1735527423546,0.44,3417.4,3416.9,2.3465025]
[1735527423751,0.44,3417.4,3416.7,4.63088026]
[1735527423752,0.44,3417.4,3417.3,2.3465025]
[1735527426555,0.73324,3417.4,3417.3,2.3465025]
[1735527427457,0.44,3417.4,3417.3,2.3465025]
[1735527429455,0.44,3417.4,3417.3,2.6397525]
[1735527430347,2.28195399,3417.8,3417.6,0.29322]
[1735527430557,2.28195399,3417.8,3417.7,2.3465025]
[1735527430955,3.43582297,3418.0,3417.7,43.1465025]
[1735527430956,2.28195399,3417.9,3417.7,43.1465025]
[1735527432154,2.57514399,3418.0,3417.7,43.1465025]
[1735527432464,0.2932,3417.9,3417.7,43.1465025]
[1735527433052,2.28195399,3418.0,3417.7,43.1465025]
[1735527433258,0.2932,3417.8,3417.7,2.3465025]
[1735527434864,2.57515399,3417.8,3417.7,2.3465025]
[1735527435558,2.28195399,3417.8,3417.4,2.3465025]
[1735527435756,3.50103,3417.6,3417.4,2.3465025]
[1735527435956,0.4577,3417.5,3417.3,40.8]
[1735527436158,0.8837,3417.5,3417.1,2.3465025]
[1735527436358,0.29325,3417.3,3417.1,2.3465025]
[1735527436557,0.428,3417.2,3417.1,43.1465025]
[1735527439062,3.00321399,3417.2,3417.1,43.1465025]
[1735527439668,3.00321399,3417.2,3417.1,2.3465025]
[1735527440062,0.428,3417.2,3416.8,43.1465025]
[1735527440366,0.29326,3417.1,3416.8,43.1465025]
[1735527440666,0.428,3417.2,3416.8,2.3465025]
[1735527440871,0.4246,3417.0,3416.8,2.3465025]
[1735527441069,0.4437,3416.9,3416.8,2.3465025]
[1735527441770,2.7444331,3416.9,3416.8,2.3465025]
[1735527442060,0.29329,3416.8,3416.7,40.8]
[1735527442262,2.7444331,3416.9,3416.5,2.3465025]
[1735527442263,0.29331,3416.6,3416.5,2.3465025]
[1735527442665,0.29331,3416.6,3416.5,43.1465025]
[1735527443265,2.3007331,3416.6,3416.5,43.1465025]
[1735527443665,2.7268331,3416.6,3416.5,43.1465025]
[1735527444267,3.0201431,3416.6,3416.5,43.1465025]
[1735527444772,2.7268331,3416.6,3416.5,43.1465025]
[1735527445173,0.4261,3416.6,3416.5,43.1465025]
[1735527445875,0.4261,3416.6,3416.5,43.4398225]
[1735527446773,3.43582297,3416.6,3416.5,43.4398225]
[1735527447875,2.30117695,3416.8,3416.5,43.1465025]
[1735527448376,2.30117695,3416.8,3416.7,0.2933]
[1735527450576,2.30117695,3416.8,3416.5,43.1465025]
[1735527450777,3.87587312,3416.8,3416.7,0.2933]
[1735527451691,4.56390798,3416.8,3416.7,0.2933]
[1735527453177,7.77170798,3416.8,3416.7,0.2933]
[1735527454088,3.64785015,3416.8,3416.7,0.2933]
[1735527454787,0.44005015,3416.8,3416.7,0.2933]
[1735527455294,3.89365695,3416.8,3416.7,0.2933]
[1735527456484,3.4536068,3416.8,3416.7,0.2933]
[1735527458586,3.4536068,3416.8,3416.5,43.1465025]
[1735527458781,3.4536068,3416.8,3416.6,0.2933]
[1735527458988,3.89364795,3416.8,3416.5,43.4398125]
[1735527459188,0.4312,3416.7,3416.5,43.4398125]
[1735527460086,3.4536068,3416.6,3416.5,43.4398125]
[1735527461293,3.8848068,3416.7,3416.5,43.4398125]
[1735527461494,3.8848068,3416.7,3416.6,0.29331]
[1735527462785,3.8848068,3416.7,3416.5,2.3465025]
[1735527462786,0.29331,3416.6,3416.5,2.3465025]
[1735527462991,4.6181747,3416.7,3416.5,2.3465025]
[1735527463292,4.3248747,3416.7,3416.5,2.6398125]
[1735527463791,0.4400679,3416.6,3416.5,2.6398125]
[1735527464794,0.4400679,3416.6,3416.5,3.0767125]
[1735527465490,0.4400679,3416.6,3416.5,3.0767225]
[1735527465491,3.45300022,3416.6,3416.5,3.0767225]
[1735527466089,3.45300022,3416.6,3416.5,2.6398225]
[1735527466897,3.45300022,3416.6,3416.5,2.3465025]
[1735527467197,3.45300022,3416.6,3416.5,2.6398025]
[1735527469100,3.89307273,3416.6,3416.5,2.3465025]
[1735527469597,3.89307273,3416.6,3416.5,2.6397925]
[1735527470094,0.44007251,3416.6,3416.5,2.6397925]
[1735527471199,5.43518049,3416.7,3416.6,0.29329]
[1735527478408,5.43518049,3416.7,3415.9,0.4493]
[1735527478598,3.50114,3416.3,3416.0,4.55397174]
[1735527478800,0.4371,3416.2,3416.0,4.84733174]
[1735527479001,0.8691,3416.2,3416.0,4.84733174]
[1735527479305,0.4559,3416.1,3416.0,4.55397174]
[1735527480011,0.89597251,3416.1,3415.9,0.29337]
[1735527480403,0.89597251,3416.1,3415.7,2.3465025]
[1735527480605,0.89597251,3416.1,3416.0,0.29336]
[1735527480801,0.89597251,3416.1,3415.9,0.29337]
[1735527481310,5.45988049,3416.1,3415.9,0.29337]
[1735527481603,5.45988049,3416.1,3415.7,2.3465025]
[1735527481809,5.45988049,3416.1,3415.8,0.29338]
[1735527482107,5.45988049,3416.1,3415.7,2.6398925]
[1735527482610,3.45302736,3415.8,3415.7,2.6398925]
[1735527489911,3.45302736,3415.8,3415.7,3.0741925]
[1735527490511,3.45302736,3415.9,3415.8,0.29338]
[1735527491316,1.47334875,3415.9,3415.8,0.29338]
[1735527491814,1.91342126,3415.9,3415.8,0.29338]
[1735527492917,1.38192126,3415.9,3415.8,0.29338]
[1735527493122,1.00212126,3415.9,3415.8,0.29338]
[1735527493823,5.70488498,3416.3,3415.8,0.29338]
[1735527493824,2.30002271,3416.3,3416.2,0.29335]
[1735527496125,1.42310762,3416.3,3416.2,0.29335]
[1735527498124,1.42310762,3416.3,3416.2,0.52320909]
[1735527498423,1.42310762,3416.3,3416.2,0.97990909]
[1735527498626,1.42310762,3416.3,3416.2,1.41460909]
[1735527499016,0.37139643,3416.5,3416.4,0.29333]
[1735527499221,7.77170798,3416.8,3416.7,0.2933]
[1735527499417,7.77170798,3416.8,3416.7,2.6398025]
[1735527500025,7.77170798,3416.8,3416.7,43.4398025]
[1735527500225,3.2078,3416.8,3416.7,43.4398025]
[1735527502824,3.2078,3416.8,3416.7,2.3465025]
[1735527503026,3.2078,3416.8,3416.6,0.29331]
[1735527503530,3.2078,3416.8,3416.7,2.6398025]
[1735527507635,3.2078,3416.8,3416.7,2.3465025]
[1735527507928,0.29331,3416.7,3416.4,2.3465025]
[1735527508132,0.73941,3416.6,3416.4,2.3465025]
[1735527508326,0.29333,3416.5,3416.2,4.84731174]
[1735527508530,0.4239,3416.4,3416.2,4.84731174]
[1735527509124,0.4239,3416.4,3416.1,43.1465025]
[1735527509333,0.4239,3416.4,3416.3,0.29334]
[1735527522143,0.86399241,3416.4,3416.3,0.29334]
[1735527526951,0.86399241,3416.4,3416.2,0.29334]
[1735527527750,3.2078,3416.3,3416.2,0.29334]
[1735527527948,3.2078,3416.3,3416.1,43.4398525]
[1735527528146,3.2078,3416.3,3416.1,40.8]
[1735527528353,0.29335,3416.2,3415.8,2.6398725]
[1735527528552,0.29335,3416.2,3415.8,2.6398825]
[1735527528852,5.3411901,3416.2,3415.9,40.8]
[1735527529149,0.29336,3416.1,3415.8,2.3465025]
[1735527529354,0.4476,3416.0,3415.8,2.6398725]
[1735527529555,0.891,3416.0,3415.9,0.29337]
[1735527530142,0.891,3416.0,3415.8,2.3465025]
[1735527530347,0.891,3416.0,3415.8,2.6398725]
[1735527530649,0.891,3416.0,3415.8,2.6398825]
[1735527530850,0.891,3416.0,3415.9,0.29337]
[1735527531046,0.891,3416.0,3415.8,2.6398825]
[1735527531246,0.44017109,3415.9,3415.8,2.6398825]
[1735527531951,0.44017109,3415.9,3415.8,2.3465025]
[1735527532459,0.44017109,3415.9,3415.8,2.6398825]
[1735527532756,0.44017109,3415.9,3415.8,0.29338]
[1735527533559,3.64797109,3415.9,3415.8,0.29338]
[1735527534951,3.64797109,3415.9,3415.8,2.6398825]
[1735527538658,3.64797109,3415.9,3415.8,2.3465025]
[1735527538861,3.64797109,3415.9,3415.8,2.6398825]
[1735527539753,3.64797109,3415.9,3415.6,40.8]
[1735527539958,0.4179,3415.8,3415.7,0.29339]
[1735527540159,0.4179,3415.8,3415.6,40.8]
[1735527540160,0.4179,3415.8,3415.6,41.09339]
[1735527541259,0.4179,3415.8,3415.7,0.29339]
[1735527542554,0.4179,3415.8,3415.2,2.3465025]
[1735527542755,0.2934,3415.6,3415.2,2.3465025]
[1735527542961,0.2934,3415.6,3415.3,0.29342]
[1735527543259,3.6283,3415.5,3415.3,0.29342]
[1735527543460,0.4563,3415.4,3415.3,0.29342]
[1735527543764,0.4563,3415.4,3415.2,2.6399325]
[1735527544061,0.4563,3415.4,3415.3,0.29342]
[1735527547653,0.4563,3415.4,3415.2,2.6399325]
[1735527548259,0.4563,3415.4,3415.3,40.8]
[1735527548660,0.4563,3415.4,3415.3,41.09342]
[1735527549466,3.6641,3415.4,3415.3,41.09342]
[1735527551261,3.2078,3415.4,3415.3,41.09342]
[1735527551566,3.2078,3415.4,3415.3,41.54862]
[1735527552260,1.9914828,3415.7,3415.6,0.2934]
[1735527552459,1.61274652,3415.7,3415.6,2.6399025]
[1735527552962,3.2078,3415.8,3415.7,0.29339]
[1735527553161,3.2078,3415.8,3415.7,1.13009]
[1735527557468,3.2078,3415.8,3415.7,0.71069]
[1735527558567,3.45259046,3416.0,3415.9,0.29337]
[1735527559571,3.45259046,3416.0,3415.9,2.6398725]
[1735527560567,3.89275285,3416.0,3415.9,2.6398725]
[1735527562575,3.45259046,3416.0,3415.9,2.6398725]
[1735527564274,3.45259046,3416.0,3415.9,2.35442618]
[1735527564776,5.75968461,3416.4,3416.3,0.29334]
[1735527564971,4.51319825,3416.4,3416.3,5.56219618]
[1735527565276,8.06355845,3417.0,3416.7,0.2933]
[1735527565470,1.37127867,3416.8,3416.7,46.36215618]
[1735527565674,0.20264578,3417.1,3416.7,46.06885618]
[1735527565875,0.20264578,3417.1,3417.0,0.29328]
[1735527566068,0.20264578,3417.1,3417.0,1.47728]
[1735527566273,0.20264578,3417.1,3417.0,3.81994075]
[1735527567182,3.2078,3417.8,3417.0,3.81994075]
[1735527567481,3.2078,3417.8,3417.7,2.34266075]
[1735527567684,3.2078,3417.8,3417.7,2.63588075]
[1735527572291,3.2078,3417.8,3417.7,2.34266075]
[1735527573991,3.2078,3417.8,3417.4,2.34266075]
[1735527574182,0.29322,3417.7,3417.4,2.34266075]
[1735527574383,3.2078,3417.8,3417.1,2.34266075]
[1735527574592,3.2078,3417.4,3417.1,2.34266075]
[1735527574788,1.56516,3417.3,3416.8,2.63595075]
[1735527575585,1.2719,3417.3,3416.8,2.34266075]
[1735527575885,1.2719,3417.3,3417.0,0.29328]
[1735527576190,1.56515,3417.3,3417.0,0.29328]
[1735527577086,1.2719,3417.3,3417.1,2.34266075]
[1735527577290,1.2719,3417.3,3417.2,0.29326]
[1735527578987,0.42,3417.3,3417.2,0.29326]
[1735527581692,4.0941,3417.9,3417.8,0.29321]
[1735527581885,4.0941,3417.9,3417.8,2.63587075]
[1735527582089,4.0941,3417.9,3417.8,43.43587075]
[1735527584394,3.2078,3418.7,3417.8,43.43587075]
[1735527584697,4.583117,3418.8,3418.7,0.29313]
[1735527584893,4.583117,3418.9,3418.6,2.34266075]
[1735527585194,4.876227,3418.9,3418.4,0.29315]
[1735527585396,0.29314,3418.6,3418.1,3.2078]
[1735527585606,0.29317,3418.2,3417.7,3.2078]
[1735527585893,0.9019,3418.1,3417.8,0.29321]
[1735527586094,0.9019,3418.1,3417.7,3.2078]
[1735527586596,0.9019,3418.1,3417.8,0.29321]
[1735527586795,0.9019,3418.1,3417.7,3.2078]
[1735527587197,0.9019,3418.1,3417.9,0.2932]
[1735527588098,0.9019,3418.1,3418.0,0.29319]
[1735527588302,0.9019,3418.1,3417.7,44.0078]
[1735527588497,0.9019,3418.1,3417.9,0.29319]
[1735527588999,0.4334,3418.0,3417.8,0.2932]
[1735527589202,0.4334,3418.0,3417.9,0.2932]
[1735527591196,0.4334,3418.0,3417.7,44.0078]
[1735527591397,0.4334,3418.0,3417.7,3.2078]
[1735527591904,0.4334,3418.0,3417.7,3.50101]
[1735527592289,0.4334,3418.0,3417.7,3.2078]
[1735527592489,0.4334,3418.0,3417.9,0.2932]
[1735527598094,0.9019,3418.1,3418.0,0.29319]
[1735527606004,4.1097,3418.1,3418.0,0.29319]
[1735527606202,3.2078,3418.1,3418.0,0.29319]
[1735527606398,0.457,3418.4,3417.9,5.55046075]
[1735527606704,0.457,3418.4,3418.3,2.63583075]
[1735527607006,0.8749,3418.6,3418.5,0.29315]
[1735527608407,0.8749,3418.6,3418.1,1.183]
[1735527608706,0.29315,3418.5,3418.2,0.29317]
[1735527609604,0.8749,3418.6,3417.9,3.2078]
[1735527609902,1.16804,3418.6,3418.3,0.29317]
[1735527610103,5.02298492,3418.4,3418.3,0.29317]
[1735527610307,5.02298492,3418.4,3418.2,0.29317]
[1735527610508,0.4278,3418.3,3418.2,0.29317]
[1735527611510,5.45078492,3418.3,3418.2,0.29317]
[1735527612211,0.29319,3418.1,3417.9,3.2078]
[1735527612413,0.4298,3418.0,3417.5,40.8]
[1735527612608,0.29324,3417.5,3417.2,4.89996147]
[1735527612909,0.74765,3417.4,3417.2,4.60670147]
[1735527613115,0.4298,3417.3,3417.2,4.60670147]
[1735527613306,0.8804,3417.3,3417.2,4.60670147]
[1735527613515,0.8804,3417.3,3417.2,4.89996147]
[1735527614012,1.32026792,3417.3,3417.2,41.09326]
[1735527615208,0.8804,3417.3,3417.2,41.09326]
[1735527616810,0.4544,3417.4,3417.2,40.8]
[1735527617011,0.4544,3417.4,3417.3,0.29325]
[1735527617413,5.45614073,3417.6,3417.5,0.29323]
[1735527617606,5.88884073,3417.6,3417.5,41.09323]
[1735527618609,1.72487866,3417.6,3417.5,41.09323]
[1735527620015,2.01810866,3417.6,3417.5,40.8]
[1735527620311,2.01810866,3417.6,3417.4,0.29324]
[1735527620617,2.01810866,3417.6,3417.3,0.29325]
[1735527621810,0.43997866,3417.5,3416.9,3.2078]
[1735527622015,0.43997866,3417.5,3416.9,44.0078]
[1735527622408,0.43997866,3417.5,3417.0,0.29328]
[1735527622713,0.43997866,3417.5,3416.9,44.0078]
[1735527622913,2.30203314,3417.2,3416.9,44.0078]
[1735527623315,0.448,3417.1,3417.0,0.29328]
[1735527623811,5.04391939,3417.5,3417.4,0.29324]
[1735527623812,4.08588625,3417.5,3417.4,0.29324]
[1735527624012,1.86045981,3417.5,3417.4,8.1863615]
[1735527624218,2.99909583,3417.7,3417.6,0.29323]
[1735527624417,1.13637672,3417.7,3417.6,42.27623]
[1735527624619,0.40296672,3417.7,3417.6,47.27623]
[1735527625012,6.87807306,3418.3,3418.2,0.29317]
[1735527625318,6.87807306,3418.3,3418.2,5.84363075]
[1735527625518,3.45249007,3418.6,3418.5,0.29315]
[1735527626718,3.89279007,3418.7,3418.6,0.29314]
[1735527627118,3.89279007,3418.7,3418.2,5.55046075]
[1735527627324,4.18592007,3418.7,3418.2,3.50097]
[1735527627726,3.45249007,3418.6,3418.2,3.50097]
[1735527628024,3.45249007,3418.6,3418.4,0.29316]
[1735527628223,3.45249007,3418.6,3418.2,3.2078]
[1735527628224,3.45249007,3418.6,3418.3,0.29316]
[1735527628823,3.45249007,3418.6,3418.2,3.2078]
[1735527629024,0.4403,3418.7,3418.4,0.29315]
[1735527629323,0.4403,3418.7,3418.6,0.29314]
[1735527629823,0.4403,3418.7,3418.2,5.55046075]
[1735527630024,0.4403,3418.7,3418.5,0.29315]
[1735527630423,0.4403,3418.7,3418.6,0.29314]
[1735527643836,0.4403,3418.7,3418.2,2.34266075]
[1735527644135,0.4403,3418.7,3418.5,0.29315]
[1735527644136,0.73344,3418.7,3418.5,0.29315]
[1735527644336,0.29317,3418.3,3418.1,0.29318]
[1735527644634,0.4374,3418.2,3418.1,0.29318]
[1735527645548,0.4374,3418.2,3417.5,4.58567696]
[1735527645732,3.2078,3417.7,3417.5,4.58567696]
[1735527645931,3.2078,3417.7,3417.5,0.29324]
[1735527645932,0.4237,3417.6,3417.5,0.29324]
[1735527646131,0.4237,3417.6,3417.3,0.29325]
[1735527646334,0.4417,3417.5,3417.3,0.29325]
[1735527646633,0.4417,3417.5,3417.1,4.58567696]
[1735527646634,0.4312,3417.4,3417.1,4.58567696]
[1735527646937,0.29328,3417.0,3416.7,0.2933]
[1735527647141,3.2078,3416.8,3416.7,0.2933]
[1735527647636,3.6315,3416.9,3416.8,0.2933]
[1735527647835,0.4237,3416.9,3416.8,0.2933]
[1735527648632,3.6315,3416.9,3416.8,0.2933]
[1735527652846,3.6315,3416.9,3416.4,2.34266075]
[1735527653145,0.452,3416.8,3416.4,2.34266075]
[1735527653442,0.452,3416.8,3416.7,0.2933]
[1735527654035,0.452,3416.8,3416.7,2.63596075]
[1735527654235,3.45117011,3417.2,3417.1,0.29327]
[1735527654438,3.45117011,3417.2,3416.7,2.34266075]
[1735527654742,3.45117011,3417.2,3416.9,0.29328]
[1735527655044,3.45117011,3417.2,3417.1,0.29327]
[1735527655349,3.45117011,3417.2,3416.7,5.55046075]
[1735527655537,0.4198,3417.1,3417.0,0.29327]
[1735527657951,0.4198,3417.1,3416.9,0.29328]
[1735527658146,0.71307,3417.1,3416.8,0.29329]
[1735527660457,0.4198,3417.1,3416.3,5.55046075]
[1735527660658,0.29329,3417.0,3416.3,5.55046075]
[1735527660862,0.29329,3417.0,3416.8,0.29329]
[1735527661660,0.2933,3416.8,3416.5,0.29331]
[1735527661860,0.74471,3416.7,3416.5,0.29331]
[1735527662054,0.8883,3416.7,3415.7,13.61193075]
[1735527662358,3.2078,3416.1,3416.0,0.29336]
[1735527663161,3.6413,3416.1,3416.0,0.29336]
[1735527663464,3.6413,3416.1,3415.6,2.34266075]
[1735527663662,3.6413,3416.1,3416.0,0.29336]
[1735527663958,0.4335,3416.1,3416.0,0.29336]
[1735527664761,0.4335,3416.1,3415.7,0.29339]
[1735527665060,0.4335,3416.1,3416.0,0.29336]
[1735527665261,0.29337,3416.0,3415.7,0.29339]
[1735527665563,0.4195,3415.9,3415.7,0.29339]
[1735527665957,0.4195,3415.9,3415.6,40.8]
[1735527666156,0.4195,3415.9,3415.8,0.29338]
[1735527667059,0.4195,3415.9,3414.9,0.73365]
[1735527667060,0.4195,3415.9,3415.0,6.73246075]
[1735527667362,0.2934,3415.6,3415.3,0.29342]
[1735527667564,0.4123,3415.5,3415.4,40.8]
[1735527667958,0.70571,3415.5,3415.4,40.8]
[1735527668158,0.4123,3415.5,3415.0,5.55046075]
[1735527668363,0.4528,3415.4,3415.3,0.29342]
[1735527669566,0.4528,3415.4,3415.2,0.29343]
[1735527669867,0.4528,3415.4,3415.3,0.29342]
[1735527670064,0.4528,3415.4,3415.0,44.0078]
[1735527670360,0.4528,3415.4,3415.0,3.2078]
[1735527670967,0.4528,3415.4,3415.3,0.29342]
[1735527672856,3.2078,3415.7,3415.6,0.2934]
[1735527673166,3.2078,3415.7,3415.6,2.63606075]
[1735527673368,0.4491,3416.1,3415.6,2.63606075]
[1735527673571,0.4491,3416.1,3416.0,0.29336]
[1735527674263,0.4491,3416.1,3415.4,4.3908]
[1735527674569,0.4491,3416.1,3416.0,0.29336]
[1735527675167,0.4491,3416.1,3415.4,1.183]
[1735527675470,3.2078,3415.8,3415.7,0.29339]
[1735527675872,3.2078,3415.8,3415.4,1.183]
[1735527676063,3.2078,3415.8,3415.7,0.29339]
[1735527676264,3.2078,3415.8,3415.4,1.183]
[1735527676566,0.29339,3415.7,3415.5,0.2934]
[1735527676766,0.4321,3415.6,3415.5,0.29341]
[1735527676965,0.8717,3415.6,3415.5,0.29341]
[1735527679167,1.1651,3415.6,3415.5,0.29341]
[1735527679569,0.8717,3415.6,3415.0,40.8]
[1735527679871,0.8717,3415.6,3415.5,0.29341]
[1735527680971,0.4396,3415.6,3415.5,0.29341]
[1735527681373,3.2078,3415.8,3415.7,0.29339]
[1735527681574,0.4491,3416.1,3416.0,0.29336]
[1735527681769,3.2078,3416.2,3416.1,0.29336]
[1735527681974,4.59598114,3416.5,3416.1,3.2078]
[1735527682177,4.59598114,3416.5,3416.2,0.29335]
[1735527682676,4.59598114,3416.5,3416.2,41.09335]
[1735527683577,3.2078,3416.9,3416.2,40.8]
[1735527683775,3.2078,3416.9,3416.7,0.2933]
[1735527683965,3.2078,3416.9,3416.8,0.29329]
[1735527684273,3.2078,3416.9,3416.2,40.8]
[1735527684468,3.2078,3416.9,3416.6,0.29331]
[1735527684665,3.2078,3416.9,3416.2,40.8]
[1735527684666,3.2078,3416.9,3416.7,0.2933]
[1735527686575,3.2078,3416.9,3416.8,0.29329]
[1735527690775,0.8576,3417.0,3416.8,0.29329]
[1735527690973,3.2078,3416.9,3416.8,0.29329]
[1735527691179,3.2078,3416.9,3416.2,40.8]
[1735527691379,0.2933,3416.8,3416.5,0.29331]
[1735527691680,0.4124,3416.7,3416.6,0.29331]
[1735527693876,0.29331,3416.6,3416.0,3.2078]
[1735527694082,0.29331,3416.6,3416.2,0.29334]
[1735527694282,0.29331,3416.6,3416.0,3.2078]
[1735527694283,0.29331,3416.6,3416.3,0.29333]
[1735527694493,0.70571,3416.7,3416.4,0.29333]
[1735527694982,0.29331,3416.6,3416.4,0.29333]
[1735527695182,3.74448011,3416.6,3416.4,0.29333]
[1735527695575,3.45117011,3416.6,3416.5,0.29332]
[1735527696576,6.16716356,3417.0,3416.9,0.29329]
[1735527696577,3.86707011,3417.0,3416.9,0.29329]
[1735527697176,3.86707011,3417.0,3416.7,0.2933]
[1735527697383,3.2078,3416.8,3416.7,0.2933]
[1735527697985,3.2078,3416.8,3416.6,0.29331]
[1735527698183,0.4387,3416.7,3416.6,0.29331]
[1735527699083,0.4387,3416.7,3416.0,5.55046075]
[1735527699283,0.4158,3416.6,3416.5,0.29332]
[1735527702285,0.4158,3416.6,3415.7,0.22905236]
[1735527702481,0.4158,3416.6,3415.2,7.79347696]
[1735527702482,0.29339,3415.7,3415.3,0.29342]
[1735527702682,0.412,3415.6,3415.2,4.58567696]
[1735527702882,0.412,3415.6,3415.3,0.29342]
[1735527703688,0.412,3415.6,3415.2,4.58567696]
[1735527703689,0.70541,3415.6,3415.2,4.58567696]
[1735527703983,0.70541,3415.6,3415.1,41.09344]
[1735527703984,0.29341,3415.5,3415.1,41.09344]
[1735527704287,0.29341,3415.5,3415.2,0.29343]
[1735527704790,0.7054,3415.6,3415.2,0.29343]
[1735527704977,0.29341,3415.5,3415.2,0.29343]
[1735527705492,0.4516,3415.4,3415.2,0.29343]
[1735527705686,0.4516,3415.4,3414.7,0.29347]
[1735527705687,0.29344,3415.1,3414.7,0.29347]
[1735527705890,3.6594,3415.4,3414.5,0.29349]
[1735527705891,3.2078,3414.9,3414.5,0.29349]
[1735527706085,3.2078,3414.9,3414.4,3.50129]
[1735527706086,0.456,3414.8,3414.4,3.50129]
[1735527706284,0.891,3414.8,3414.5,0.29349]
[1735527706589,0.891,3414.8,3414.4,44.0078]
[1735527706891,0.891,3414.8,3414.5,0.29349]
[1735527707085,0.29349,3414.6,3414.1,0.29352]
[1735527707285,3.2078,3414.5,3414.2,40.8]
[1735527707592,3.50129,3414.5,3414.2,40.8]
[1735527707793,3.2078,3414.5,3414.1,0.29352]
[1735527708292,3.2078,3414.5,3414.1,41.09352]
[1735527708492,3.2078,3414.5,3414.1,40.8]
[1735527708694,3.2078,3414.5,3414.2,0.29352]
[1735527709186,3.2078,3414.5,3413.7,5.98566075]
[1735527709392,3.2078,3414.5,3414.1,0.29352]
[1735527709585,3.2078,3414.5,3414.0,0.29353]
[1735527709888,3.2078,3414.5,3413.8,40.8]
[1735527710086,3.2078,3414.5,3414.1,0.29352]
[1735527710691,3.2078,3414.5,3413.8,40.8]
[1735527710891,3.2078,3414.5,3414.2,0.29352]
[1735527711189,3.2078,3414.5,3414.1,0.29352]
[1735527711691,3.50129,3414.5,3413.9,0.29354]
[1735527711891,3.2078,3414.5,3414.0,0.29353]
[1735527712192,3.2078,3414.5,3413.8,40.8]
[1735527712391,3.50129,3414.5,3414.0,0.29353]
[1735527712781,3.2078,3414.5,3413.8,40.8]
[1735527712981,3.2078,3414.5,3414.4,0.2935]
[1735527713586,3.2078,3414.5,3414.4,41.386]
[1735527714291,3.88817011,3415.0,3414.4,41.0925]
[1735527714591,3.45117011,3415.0,3414.9,0.29346]
[1735527715093,3.2078,3415.2,3414.9,0.29346]
[1735527715291,3.50123,3415.2,3414.8,0.29347]
[1735527715492,3.2078,3415.2,3414.4,42.2745]
[1735527715692,3.2078,3415.2,3414.9,0.29345]
[1735527716896,3.2078,3415.2,3415.0,0.29344]
[1735527718500,3.2078,3415.2,3414.6,2.34266075]
[1735527718701,3.2078,3415.2,3414.4,42.2745]
[1735527718996,3.2078,3415.2,3414.8,0.29346]
[1735527719199,3.2078,3415.2,3414.4,42.2745]
[1735527719401,3.2078,3415.2,3414.9,0.29345]
[1735527719900,0.29349,3414.6,3414.1,0.29352]
[1735527720094,3.2078,3414.3,3413.9,0.4492]
[1735527720401,0.4415,3414.5,3414.0,40.8]
[1735527721103,0.4415,3414.5,3414.0,43.14266075]
[1735527721399,0.4415,3414.5,3414.2,0.29351]
[1735527722399,0.4415,3414.5,3414.3,0.29351]
[1735527722609,3.2078,3414.6,3414.0,43.14266075]
[1735527722800,3.2078,3414.6,3414.5,0.29349]
[1735527723099,0.444,3414.9,3414.6,0.29348]
[1735527723303,0.444,3414.9,3414.5,0.29349]
[1735527723503,0.444,3414.9,3414.6,0.29348]
[1735527724203,0.444,3414.9,3414.3,2.34266075]
[1735527724903,0.444,3414.9,3414.7,0.29347]
[1735527726004,0.444,3414.9,3414.3,2.34266075]
[1735527726005,0.8532,3415.0,3414.9,0.29346]
[1735527726302,3.2078,3415.5,3414.9,5.55046075]
[1735527726503,3.2078,3415.5,3415.4,0.29341]
[1735527727501,3.2078,3415.5,3415.3,0.29342]
[1735527727705,3.2078,3415.5,3415.0,40.8]
[1735527728300,3.50121,3415.5,3415.3,0.29342]
[1735527728704,3.2078,3415.5,3415.0,40.8]
[1735527728901,0.29342,3415.4,3415.0,40.8]
[1735527729098,3.50121,3415.5,3415.2,0.29343]
[1735527729901,3.2078,3415.5,3415.2,0.29343]